[Event "*** Titled Tuesday 3|2 Blitz"]
[Site "Chess.com"]
[Date "2016.06.07"]
[Round "3"]
[White "AlexanderL"]
[Black "Lukianoo"]
[Result "1/2-1/2"]
[WhiteElo "2593"]
[BlackElo "2605"]
[TimeControl "180+2"]
[EndTime "11:37:55 PDT"]
[Termination "Game drawn - insufficient material"]

1. d4 {[%clk 0:03:01.9]} 1... Nf6 {[%clk 0:03:00.1]} 2. c4 {[%clk 0:03:01]} 2...
e6 {[%clk 0:03:01.3]} 3. Nc3 {[%clk 0:03:01.3]} 3... Bb4 {[%clk 0:03:01.5]} 4.
Qc2 {[%clk 0:03:02]} 4... O-O {[%clk 0:02:59.8]} 5. Nf3 {[%clk 0:03:02.6]} 5...
c5 {[%clk 0:02:54.8]} 6. dxc5 {[%clk 0:03:03.3]} 6... Bxc5 {[%clk 0:02:50.4]} 7.
Bg5 {[%clk 0:03:02.6]} 7... h6 {[%clk 0:02:45.5]} 8. Bh4 {[%clk 0:03:02.9]} 8...
Nc6 {[%clk 0:02:42.6]} 9. e3 {[%clk 0:03:01.9]} 9... b6 {[%clk 0:02:38.4]} 10.
Rd1 {[%clk 0:03:00.1]} 10... Bb7 {[%clk 0:02:32.9]} 11. Be2 {[%clk 0:02:47.7]}
11... Qe7 {[%clk 0:02:32.7]} 12. Bxf6 {[%clk 0:02:45.7]} 12... Qxf6 {[%clk
0:02:28]} 13. Rxd7 {[%clk 0:02:46.4]} 13... Nb4 {[%clk 0:02:22.6]} 14. Qb1
{[%clk 0:02:40.8]} 14... Bc6 {[%clk 0:02:19.8]} 15. Rd1 {[%clk 0:02:41.4]} 15...
Rad8 {[%clk 0:02:14.8]} 16. O-O {[%clk 0:02:41]} 16... a5 {[%clk 0:02:05.5]} 17.
a3 {[%clk 0:02:37]} 17... Na6 {[%clk 0:02:04.1]} 18. Qc2 {[%clk 0:02:37.6]}
18... Nc7 {[%clk 0:02:00.5]} 19. h3 {[%clk 0:02:31.4]} 19... e5 {[%clk
0:01:57.7]} 20. Rxd8 {[%clk 0:01:54.8]} 20... Rxd8 {[%clk 0:01:53.4]} 21. Rd1
{[%clk 0:01:56.7]} 21... Rxd1+ {[%clk 0:01:48]} 22. Bxd1 {[%clk 0:01:58.1]}
22... Qe6 {[%clk 0:01:40.2]} 23. Nd2 {[%clk 0:01:56.4]} 23... f5 {[%clk
0:01:35.4]} 24. Be2 {[%clk 0:01:47.2]} 24... Qf6 {[%clk 0:01:30.1]} 25. Nb3
{[%clk 0:01:38.8]} 25... Bf8 {[%clk 0:01:26.3]} 26. c5 {[%clk 0:01:10.3]} 26...
Bxc5 {[%clk 0:01:20]} 27. Nxc5 {[%clk 0:01:11.4]} 27... bxc5 {[%clk 0:01:19.5]}
28. Na4 {[%clk 0:01:12.6]} 28... f4 {[%clk 0:01:10.1]} 29. e4 {[%clk 0:00:48.5]}
29... Ne6 {[%clk 0:01:06.9]} 30. Bc4 {[%clk 0:00:46.2]} 30... Kh7 {[%clk
0:01:04.5]} 31. Bxe6 {[%clk 0:00:46.4]} 31... Qxe6 {[%clk 0:01:03.5]} 32. Nxc5
{[%clk 0:00:47.1]} 32... Qd6 {[%clk 0:01:01.4]} 33. Qc3 {[%clk 0:00:36.5]} 33...
a4 {[%clk 0:00:59.1]} 34. f3 {[%clk 0:00:32.8]} 34... Bb5 {[%clk 0:00:56.6]} 35.
Kh2 {[%clk 0:00:32.7]} 35... h5 {[%clk 0:00:51.4]} 36. b3 {[%clk 0:00:23.2]}
36... axb3 {[%clk 0:00:45.1]} 37. Nxb3 {[%clk 0:00:25.1]} 37... Qxa3 {[%clk
0:00:42.4]} 38. Qxe5 {[%clk 0:00:25.7]} 38... Qxb3 {[%clk 0:00:39.9]} 39. Qxh5+
{[%clk 0:00:26.6]} 39... Kg8 {[%clk 0:00:39.5]} 40. Qe5 {[%clk 0:00:27.6]} 40...
Bd7 {[%clk 0:00:31.4]} 41. Qxf4 {[%clk 0:00:28.4]} 41... Qd3 {[%clk 0:00:25.5]}
42. Qg5 {[%clk 0:00:28.4]} 42... Qd6+ {[%clk 0:00:22.8]} 43. e5 {[%clk
0:00:29.6]} 43... Qd5 {[%clk 0:00:22]} 44. h4 {[%clk 0:00:30.2]} 44... Kf7
{[%clk 0:00:20.8]} 45. h5 {[%clk 0:00:30]} 45... Qe6 {[%clk 0:00:15.9]} 46. Kg3
{[%clk 0:00:22.2]} 46... Qe7 {[%clk 0:00:15.1]} 47. Qxe7+ {[%clk 0:00:22.3]}
47... Kxe7 {[%clk 0:00:17]} 48. Kf4 {[%clk 0:00:23.4]} 48... Ke6 {[%clk
0:00:17]} 49. g4 {[%clk 0:00:19.2]} 49... Be8 {[%clk 0:00:17.2]} 50. Kg5 {[%clk
0:00:14.7]} 50... Kxe5 {[%clk 0:00:17.6]} 51. f4+ {[%clk 0:00:16.2]} 51... Ke6
{[%clk 0:00:14.3]} 52. h6 {[%clk 0:00:14.1]} 52... gxh6+ {[%clk 0:00:12.6]} 53.
Kxh6 {[%clk 0:00:16]} 53... Kf6 {[%clk 0:00:13.8]} 54. f5 {[%clk 0:00:17.4]}
54... Bd7 {[%clk 0:00:13.9]} 55. g5+ {[%clk 0:00:18.2]} 55... Kxf5 {[%clk
0:00:15.1]} 56. g6 {[%clk 0:00:19.3]} 56... Be6 {[%clk 0:00:16.2]} 57. g7 {[%clk
0:00:20.7]} 57... Kf6 {[%clk 0:00:17.4]} 58. g8=Q {[%clk 0:00:21.7]} 58... Bxg8
{[%clk 0:00:18.4]} 1/2-1/2

[Event "*** Titled Tuesday 3|2 Blitz"]
[Site "Chess.com"]
[Date "2016.06.07"]
[Round "3"]
[White "andretta"]
[Black "eltenedor"]
[Result "1-0"]
[WhiteElo "2180"]
[BlackElo "2055"]
[TimeControl "180+2"]
[EndTime "11:37:55 PDT"]
[Termination "andretta won on time"]

1. b3 {[%clk 0:03:01.9]} 1... c5 {[%clk 0:02:56]} 2. Bb2 {[%clk 0:03:02.6]} 2...
Nc6 {[%clk 0:02:55.3]} 3. e3 {[%clk 0:03:02.9]} 3... a6 {[%clk 0:02:54]} 4. Nf3
{[%clk 0:02:59.4]} 4... d6 {[%clk 0:02:53]} 5. d4 {[%clk 0:02:57.6]} 5... cxd4
{[%clk 0:02:46.7]} 6. exd4 {[%clk 0:02:59.5]} 6... e6 {[%clk 0:02:43.5]} 7. d5
{[%clk 0:02:54.8]} 7... exd5 {[%clk 0:02:37.3]} 8. Qxd5 {[%clk 0:02:56.7]} 8...
Be6 {[%clk 0:02:33.3]} 9. Qd2 {[%clk 0:02:27.2]} 9... d5 {[%clk 0:02:21.1]} 10.
Bd3 {[%clk 0:02:25.8]} 10... Nf6 {[%clk 0:02:06.8]} 11. O-O {[%clk 0:02:26.6]}
11... Ne4 {[%clk 0:02:02.9]} 12. Qe2 {[%clk 0:02:11.5]} 12... Qc7 {[%clk
0:01:42.1]} 13. Nbd2 {[%clk 0:02:01]} 13... Nxd2 {[%clk 0:01:37.4]} 14. Nxd2
{[%clk 0:01:55.7]} 14... Bd6 {[%clk 0:01:34.8]} 15. Nf3 {[%clk 0:01:53.2]} 15...
O-O-O {[%clk 0:01:32]} 16. c4 {[%clk 0:01:45.5]} 16... Rhe8 {[%clk 0:01:04.4]}
17. Rfe1 {[%clk 0:01:25.7]} 17... Re7 {[%clk 0:00:54.3]} 18. Rac1 {[%clk
0:01:10.3]} 18... Bg4 {[%clk 0:00:52.3]} 19. Qf1 {[%clk 0:01:09.5]} 19... Bxf3
{[%clk 0:00:50.9]} 20. Rxe7 {[%clk 0:01:06.5]} 20... Qxe7 {[%clk 0:00:39]} 21.
gxf3 {[%clk 0:01:07.1]} 21... d4 {[%clk 0:00:34.6]} 22. Qh3+ {[%clk 0:01:05]}
22... Kb8 {[%clk 0:00:33.6]} 23. Be4 {[%clk 0:00:53.3]} 23... Ne5 {[%clk
0:00:27.7]} 24. Rd1 {[%clk 0:00:51.5]} 24... Bc5 {[%clk 0:00:23.3]} 25. Qg3
{[%clk 0:00:49]} 25... Ka7 {[%clk 0:00:17.4]} 26. Bd5 {[%clk 0:00:49.2]} 26...
Qf6 {[%clk 0:00:13]} 27. a3 {[%clk 0:00:17.2]} 27... Rxd5 {[%clk 0:00:09.2]} 28.
cxd5 {[%clk 0:00:15.5]} 28... Nxf3+ {[%clk 0:00:09.5]} 29. Kg2 {[%clk
0:00:16.7]} 29... Nh4+ {[%clk 0:00:06.6]} 30. Kg1 {[%clk 0:00:14.4]} 30... Nf5
{[%clk 0:00:08.5]} 31. Qg4 {[%clk 0:00:11.5]} 31... Qe5 {[%clk 0:00:07.8]} 32.
b4 {[%clk 0:00:10.5]} 32... Bb6 {[%clk 0:00:08.4]} 33. a4 {[%clk 0:00:10.8]}
33... a5 {[%clk 0:00:07.4]} 34. bxa5 {[%clk 0:00:11.4]} 34... Bc5 {[%clk
0:00:08.1]} 35. Qf3 {[%clk 0:00:11.3]} 35... g5 {[%clk 0:00:07.7]} 36. Bc1
{[%clk 0:00:11.8]} 36... g4 {[%clk 0:00:07.8]} 37. Qf4 {[%clk 0:00:13.2]} 37...
Qxd5 {[%clk 0:00:06.8]} 38. Qxg4 {[%clk 0:00:10.8]} 38... d3 {[%clk 0:00:07]}
39. Be3 {[%clk 0:00:11.4]} 39... Nxe3 {[%clk 0:00:05.7]} 40. fxe3 {[%clk
0:00:11.2]} 40... Bxe3+ {[%clk 0:00:07.6]} 41. Kf1 {[%clk 0:00:12.3]} 41... d2
{[%clk 0:00:07]} 42. Ke2 {[%clk 0:00:13.4]} 42... Bh6 {[%clk 0:00:06.6]} 43. Qf3
{[%clk 0:00:11.6]} 43... Qe5+ {[%clk 0:00:06.1]} 44. Kf2 {[%clk 0:00:11.9]}
44... Qd4+ {[%clk 0:00:06.6]} 45. Kg2 {[%clk 0:00:12.5]} 45... Qxa4 {[%clk
0:00:06.6]} 46. Qf2+ {[%clk 0:00:13.4]} 46... Ka6 {[%clk 0:00:05.4]} 47. Qf1+
{[%clk 0:00:14.6]} 47... Kxa5 {[%clk 0:00:05.7]} 48. Ra1 {[%clk 0:00:15.5]}
48... d1=Q {[%clk 0:00:05.6]} 49. Qxd1 {[%clk 0:00:14.8]} 1-0

[Event "*** Titled Tuesday 3|2 Blitz"]
[Site "Chess.com"]
[Date "2016.06.07"]
[Round "3"]
[White "underdogchss"]
[Black "GMBenjaminBok"]
[Result "0-1"]
[WhiteElo "2335"]
[BlackElo "2605"]
[TimeControl "180+2"]
[EndTime "11:38:09 PDT"]
[Termination "GMBenjaminBok won by resignation"]

1. d4 {[%clk 0:03:01.9]} 1... Nf6 {[%clk 0:03:00.7]} 2. Nf3 {[%clk 0:03:02.1]}
2... g6 {[%clk 0:03:01.7]} 3. c4 {[%clk 0:03:02]} 3... Bg7 {[%clk 0:03:02.9]} 4.
Nc3 {[%clk 0:03:03.2]} 4... d5 {[%clk 0:03:04.2]} 5. cxd5 {[%clk 0:03:00.9]}
5... Nxd5 {[%clk 0:03:06.1]} 6. e4 {[%clk 0:03:01.6]} 6... Nxc3 {[%clk
0:03:07.3]} 7. bxc3 {[%clk 0:03:03.1]} 7... O-O {[%clk 0:03:08.6]} 8. Be3 {[%clk
0:03:04.5]} 8... c5 {[%clk 0:03:09.8]} 9. Rc1 {[%clk 0:03:05.8]} 9... Bg4 {[%clk
0:03:03.2]} 10. d5 {[%clk 0:02:57.3]} 10... Bxf3 {[%clk 0:02:37.5]} 11. gxf3
{[%clk 0:02:51.8]} 11... Nd7 {[%clk 0:02:35.3]} 12. f4 {[%clk 0:02:44.3]} 12...
Qa5 {[%clk 0:02:29]} 13. Qd2 {[%clk 0:02:45.3]} 13... Nb6 {[%clk 0:02:24.3]} 14.
c4 {[%clk 0:02:34.3]} 14... Qa3 {[%clk 0:02:25]} 15. Be2 {[%clk 0:02:08.9]}
15... Rad8 {[%clk 0:02:24.8]} 16. O-O {[%clk 0:02:08.2]} 16... e6 {[%clk
0:02:25.7]} 17. Kh1 {[%clk 0:01:57.7]} 17... Rfe8 {[%clk 0:02:23.1]} 18. Bd3
{[%clk 0:01:48]} 18... exd5 {[%clk 0:02:20.2]} 19. exd5 {[%clk 0:01:40.6]} 19...
Nxd5 {[%clk 0:02:06.6]} 20. cxd5 {[%clk 0:01:35.2]} 20... Rxd5 {[%clk
0:02:07.2]} 21. Rfd1 {[%clk 0:01:32.2]} 21... Red8 {[%clk 0:02:07.9]} 22. Qe2
{[%clk 0:01:00.7]} 22... Rxd3 {[%clk 0:02:07.1]} 23. Rxd3 {[%clk 0:01:02]} 23...
Qxd3 {[%clk 0:02:04.9]} 24. Qxd3 {[%clk 0:01:01.5]} 24... Rxd3 {[%clk
0:02:06.8]} 25. Rxc5 {[%clk 0:01:01.8]} 25... Rd8 {[%clk 0:00:50.3]} 26. Rc7
{[%clk 0:01:01.9]} 26... Bd4 {[%clk 0:00:50.6]} 27. Rxb7 {[%clk 0:00:44.7]}
27... Bxe3 {[%clk 0:00:51.3]} 28. fxe3 {[%clk 0:00:46.4]} 28... Rd1+ {[%clk
0:00:52]} 29. Kg2 {[%clk 0:00:48]} 29... Rd2+ {[%clk 0:00:53.9]} 30. Kg3 {[%clk
0:00:48.9]} 30... Rxa2 {[%clk 0:00:54.4]} 31. e4 {[%clk 0:00:49.8]} 31... a5
{[%clk 0:00:54.3]} 32. Ra7 {[%clk 0:00:49.3]} 32... a4 {[%clk 0:00:55.4]} 33. e5
{[%clk 0:00:44.6]} 33... a3 {[%clk 0:00:56.4]} 34. Kh3 {[%clk 0:00:42.6]} 34...
Ra1 {[%clk 0:00:51.6]} 35. Kg2 {[%clk 0:00:43]} 35... Kf8 {[%clk 0:00:49.4]} 36.
Kh3 {[%clk 0:00:37.3]} 36... a2 {[%clk 0:00:27.7]} 37. Kg2 {[%clk 0:00:37.8]}
37... Ke8 {[%clk 0:00:27.2]} 38. h3 {[%clk 0:00:30.3]} 38... Kd8 {[%clk
0:00:25.5]} 39. h4 {[%clk 0:00:27.3]} 39... h5 {[%clk 0:00:21.5]} 40. Ra5 {[%clk
0:00:21.6]} 40... Kd7 {[%clk 0:00:22]} 41. Ra6 {[%clk 0:00:22.9]} 41... Kc7
{[%clk 0:00:21.9]} 42. Kh2 {[%clk 0:00:23.7]} 42... Kb7 {[%clk 0:00:23]} 43. Ra3
{[%clk 0:00:25.1]} 43... Kc6 {[%clk 0:00:23.6]} 44. Kg2 {[%clk 0:00:26.2]} 44...
Kd5 {[%clk 0:00:24.4]} 45. Ra4 {[%clk 0:00:26.2]} 45... Ke6 {[%clk 0:00:24.9]}
46. Ra7 {[%clk 0:00:25.5]} 46... Kd5 {[%clk 0:00:22.9]} 47. Ra4 {[%clk
0:00:26.1]} 47... Kc5 {[%clk 0:00:23.7]} 48. Ra8 {[%clk 0:00:27]} 48... Kd4
{[%clk 0:00:23.8]} 49. Ra7 {[%clk 0:00:27.3]} 49... Ke4 {[%clk 0:00:22]} 50.
Ra4+ {[%clk 0:00:24]} 50... Ke3 {[%clk 0:00:22.5]} 51. Kh2 {[%clk 0:00:22.2]}
51... Kf3 {[%clk 0:00:22.8]} 52. Ra7 {[%clk 0:00:21.9]} 52... Re1 {[%clk
0:00:13.1]} 53. Ra3+ {[%clk 0:00:19.5]} 53... Re3 {[%clk 0:00:13.7]} 54. Rxa2
{[%clk 0:00:20.3]} 54... Re2+ {[%clk 0:00:14.8]} 55. Rxe2 {[%clk 0:00:20.9]}
55... Kxe2 {[%clk 0:00:16.7]} 56. Kg2 {[%clk 0:00:21.9]} 56... Ke3 {[%clk
0:00:17.5]} 57. Kg3 {[%clk 0:00:21]} 57... Ke4 {[%clk 0:00:18.3]} 0-1

[Event "*** Titled Tuesday 3|2 Blitz"]
[Site "Chess.com"]
[Date "2016.06.07"]
[Round "3"]
[White "kereswasbest"]
[Black "Makalexa"]
[Result "0-1"]
[WhiteElo "2120"]
[BlackElo "2165"]
[TimeControl "180+2"]
[EndTime "11:38:25 PDT"]
[Termination "Makalexa won by resignation"]

1. d4 {[%clk 0:03:01.9]} 1... Nf6 {[%clk 0:03:00.1]} 2. c4 {[%clk 0:03:03]} 2...
g6 {[%clk 0:02:59.5]} 3. Nc3 {[%clk 0:03:04]} 3... Bg7 {[%clk 0:03:00.7]} 4. e4
{[%clk 0:03:04.9]} 4... d6 {[%clk 0:03:02.1]} 5. Nf3 {[%clk 0:03:05.7]} 5... O-O
{[%clk 0:03:02.9]} 6. Be2 {[%clk 0:03:07.3]} 6... e5 {[%clk 0:02:59.5]} 7. O-O
{[%clk 0:03:08.2]} 7... Nc6 {[%clk 0:02:59.7]} 8. d5 {[%clk 0:03:09.4]} 8... Ne7
{[%clk 0:03:01.3]} 9. Qb3 {[%clk 0:03:11]} 9... b6 {[%clk 0:03:00.6]} 10. a4
{[%clk 0:03:07.5]} 10... a5 {[%clk 0:02:59.6]} 11. Qa3 {[%clk 0:03:07]} 11...
Nh5 {[%clk 0:02:55.6]} 12. b4 {[%clk 0:03:07]} 12... f5 {[%clk 0:02:51.6]} 13.
bxa5 {[%clk 0:02:59.5]} 13... Rxa5 {[%clk 0:02:49.2]} 14. Nd2 {[%clk 0:02:55.2]}
14... Nf6 {[%clk 0:02:48.8]} 15. Nb3 {[%clk 0:02:54.3]} 15... Ra8 {[%clk
0:02:48.7]} 16. Bd3 {[%clk 0:02:45.8]} 16... f4 {[%clk 0:02:39.7]} 17. a5 {[%clk
0:02:46]} 17... f3 {[%clk 0:02:35.1]} 18. Qb2 {[%clk 0:02:38.2]} 18... bxa5
{[%clk 0:02:26.6]} 19. Rxa5 {[%clk 0:02:37.1]} 19... Rb8 {[%clk 0:02:27.2]} 20.
Nb5 {[%clk 0:02:31.3]} 20... c6 {[%clk 0:02:22.5]} 21. dxc6 {[%clk 0:02:07.2]}
21... Nxc6 {[%clk 0:02:21.9]} 22. Ra4 {[%clk 0:01:57.3]} 22... fxg2 {[%clk
0:02:22.9]} 23. Kxg2 {[%clk 0:01:55.4]} 23... Qd7 {[%clk 0:02:13.6]} 24. f3
{[%clk 0:01:48]} 24... Nd4 {[%clk 0:02:09.5]} 25. N3xd4 {[%clk 0:01:40.4]} 25...
exd4 {[%clk 0:02:11.4]} 26. Kh1 {[%clk 0:01:28.3]} 26... Qh3 {[%clk 0:01:53.3]}
27. Qg2 {[%clk 0:01:27.3]} 27... Qh5 {[%clk 0:01:53.5]} 28. Qg5 {[%clk
0:01:17.4]} 28... Bh3 {[%clk 0:01:35.1]} 29. Qxh5 {[%clk 0:01:14.4]} 29... Nxh5
{[%clk 0:01:35]} 30. Rf2 {[%clk 0:01:15.8]} 30... Be5 {[%clk 0:01:25.1]} 31. Bf1
{[%clk 0:01:08.9]} 31... Bg4 {[%clk 0:01:21.3]} 32. Bg2 {[%clk 0:01:01.6]} 32...
Bd7 {[%clk 0:01:06.6]} 33. Ra5 {[%clk 0:00:53.6]} 33... Rf7 {[%clk 0:00:58]} 34.
Ba3 {[%clk 0:00:45.1]} 34... Rf6 {[%clk 0:00:53.5]} 35. Bf1 {[%clk 0:00:32.8]}
35... Rbf8 {[%clk 0:00:51.2]} 36. c5 {[%clk 0:00:25.4]} 36... Rxf3 {[%clk
0:00:39.6]} 37. Bc4+ {[%clk 0:00:23.1]} 37... Kg7 {[%clk 0:00:40.3]} 38. Rxf3
{[%clk 0:00:21.4]} 38... Rxf3 {[%clk 0:00:42.2]} 39. Ra7 {[%clk 0:00:22.2]}
39... Rf2 {[%clk 0:00:30.1]} 40. Rxd7+ {[%clk 0:00:20.3]} 40... Kh6 {[%clk
0:00:29.7]} 41. Bc1+ {[%clk 0:00:19.9]} 41... g5 {[%clk 0:00:31.2]} 42. Bg8
{[%clk 0:00:18.2]} 42... Rxh2+ {[%clk 0:00:31.4]} 43. Kg1 {[%clk 0:00:19.3]}
43... Nf6 {[%clk 0:00:26.7]} 44. Rxd6 {[%clk 0:00:18.4]} 44... Bxd6 {[%clk
0:00:22.4]} 45. cxd6 {[%clk 0:00:19.3]} 45... Rc2 {[%clk 0:00:23.2]} 46. d7
{[%clk 0:00:19.4]} 46... Nxd7 {[%clk 0:00:23.4]} 47. Ba3 {[%clk 0:00:18.7]}
47... d3 {[%clk 0:00:21.7]} 48. Bb3 {[%clk 0:00:19.4]} 48... Re2 {[%clk
0:00:18.9]} 49. Kf1 {[%clk 0:00:20.2]} 49... Nf6 {[%clk 0:00:18.6]} 50. Bc4
{[%clk 0:00:20.5]} 50... Nxe4 {[%clk 0:00:19.1]} 51. Bxd3 {[%clk 0:00:21.3]}
51... Ng3+ {[%clk 0:00:19.8]} 52. Kg1 {[%clk 0:00:22]} 52... Re3 {[%clk
0:00:21.4]} 53. Bc5 {[%clk 0:00:17.8]} 53... Rxd3 {[%clk 0:00:21.7]} 54. Bf8+
{[%clk 0:00:19.5]} 54... Kh5 {[%clk 0:00:22.5]} 55. Kg2 {[%clk 0:00:18.3]} 55...
Nf5 {[%clk 0:00:23.4]} 56. Kf2 {[%clk 0:00:17.8]} 56... g4 {[%clk 0:00:24]} 57.
Nc7 {[%clk 0:00:18]} 57... Rd2+ {[%clk 0:00:24.3]} 58. Kg1 {[%clk 0:00:18.6]}
58... g3 {[%clk 0:00:25]} 59. Ne6 {[%clk 0:00:19.8]} 59... Kg4 {[%clk 0:00:24]}
60. Bb4 {[%clk 0:00:19.4]} 60... Rb2 {[%clk 0:00:24.2]} 61. Be1 {[%clk
0:00:19.7]} 61... Rb1 {[%clk 0:00:25]} 62. Kf1 {[%clk 0:00:20.4]} 62... Ne3+
{[%clk 0:00:23.2]} 63. Ke2 {[%clk 0:00:20.5]} 63... Nd5 {[%clk 0:00:17.9]} 64.
Nd4 {[%clk 0:00:19.9]} 64... Nf4+ {[%clk 0:00:18.2]} 65. Kf1 {[%clk 0:00:20.4]}
65... g2+ {[%clk 0:00:18.8]} 66. Kf2 {[%clk 0:00:21.7]} 66... Rxe1 {[%clk
0:00:19]} 0-1

[Event "*** Titled Tuesday 3|2 Blitz"]
[Site "Chess.com"]
[Date "2016.06.07"]
[Round "3"]
[White "lukas_111111"]
[Black "viktorskliarov"]
[Result "1/2-1/2"]
[WhiteElo "2216"]
[BlackElo "2374"]
[TimeControl "180+2"]
[EndTime "11:38:48 PDT"]
[Termination "Game drawn by repetition"]

1. e4 {[%clk 0:02:59.6]} 1... c5 {[%clk 0:02:59.7]} 2. Nf3 {[%clk 0:02:58.3]}
2... Nc6 {[%clk 0:03:01]} 3. Bb5 {[%clk 0:02:58.3]} 3... e6 {[%clk 0:03:01.5]}
4. O-O {[%clk 0:02:58.2]} 4... Nge7 {[%clk 0:03:02.1]} 5. Re1 {[%clk 0:02:57.9]}
5... Nd4 {[%clk 0:03:02.2]} 6. Nxd4 {[%clk 0:02:55.6]} 6... cxd4 {[%clk
0:03:03]} 7. c3 {[%clk 0:02:57.1]} 7... a6 {[%clk 0:02:58.1]} 8. Bf1 {[%clk
0:02:41.2]} 8... d5 {[%clk 0:02:49.9]} 9. exd5 {[%clk 0:02:36.9]} 9... Nxd5
{[%clk 0:02:48.8]} 10. cxd4 {[%clk 0:02:32.8]} 10... Be7 {[%clk 0:02:35.2]} 11.
Nc3 {[%clk 0:02:33.1]} 11... Bf6 {[%clk 0:02:36]} 12. Ne4 {[%clk 0:02:31.3]}
12... O-O {[%clk 0:02:32.2]} 13. Nxf6+ {[%clk 0:02:29.9]} 13... Qxf6 {[%clk
0:02:34.1]} 14. b3 {[%clk 0:02:20.5]} 14... b6 {[%clk 0:02:27.6]} 15. Ba3 {[%clk
0:02:15.3]} 15... Rd8 {[%clk 0:02:26.9]} 16. Rc1 {[%clk 0:02:11.2]} 16... Bb7
{[%clk 0:02:27.7]} 17. Qg4 {[%clk 0:02:03.4]} 17... Rac8 {[%clk 0:02:20.9]} 18.
Bb2 {[%clk 0:01:55]} 18... Qh6 {[%clk 0:02:02.9]} 19. Bc3 {[%clk 0:01:31.4]}
19... b5 {[%clk 0:01:55.1]} 20. Ba5 {[%clk 0:01:30.2]} 20... Re8 {[%clk
0:01:53.4]} 21. g3 {[%clk 0:00:55.1]} 21... b4 {[%clk 0:01:49.6]} 22. Qe2 {[%clk
0:00:55.1]} 22... Nf4 {[%clk 0:01:38.1]} 23. Qg4 {[%clk 0:00:50.9]} 23... Nd5
{[%clk 0:01:33]} 24. Qe2 {[%clk 0:00:51.2]} 24... Qf6 {[%clk 0:01:28]} 25. Qe5
{[%clk 0:00:39.6]} 25... Qg6 {[%clk 0:01:09.7]} 26. Bg2 {[%clk 0:00:37.7]} 26...
h6 {[%clk 0:01:08.6]} 27. Be4 {[%clk 0:00:37.5]} 27... Qg4 {[%clk 0:01:05.7]}
28. f3 {[%clk 0:00:29.1]} 28... Qh3 {[%clk 0:01:06.2]} 29. Bd3 {[%clk
0:00:27.8]} 29... Nf6 {[%clk 0:00:59.8]} 30. Bf1 {[%clk 0:00:26.6]} 30... Qf5
{[%clk 0:00:56.9]} 31. Qxf5 {[%clk 0:00:27.2]} 31... exf5 {[%clk 0:00:58.1]} 32.
Rxe8+ {[%clk 0:00:23.3]} 32... Rxe8 {[%clk 0:00:57.1]} 33. Kf2 {[%clk
0:00:24.1]} 33... Nd5 {[%clk 0:00:56.7]} 34. Rc5 {[%clk 0:00:24.3]} 34... Re7
{[%clk 0:00:45]} 35. Bd3 {[%clk 0:00:23.2]} 35... g6 {[%clk 0:00:43.7]} 36. Bc4
{[%clk 0:00:24.2]} 36... Rd7 {[%clk 0:00:44.9]} 37. Bxd5 {[%clk 0:00:13.3]}
37... Bxd5 {[%clk 0:00:45.8]} 38. Bxb4 {[%clk 0:00:13.3]} 38... g5 {[%clk
0:00:47.7]} 39. Bc3 {[%clk 0:00:13.6]} 39... f4 {[%clk 0:00:48.7]} 40. gxf4
{[%clk 0:00:10.3]} 40... gxf4 {[%clk 0:00:50.6]} 41. Ra5 {[%clk 0:00:10.4]}
41... Rd6 {[%clk 0:00:50.2]} 42. Bb4 {[%clk 0:00:11]} 42... Rd7 {[%clk
0:00:50.8]} 43. Rxa6 {[%clk 0:00:11.3]} 43... Kg7 {[%clk 0:00:52.7]} 44. Bd6
{[%clk 0:00:10.8]} 44... f6 {[%clk 0:00:52.6]} 45. Bxf4 {[%clk 0:00:11.4]} 45...
Kg6 {[%clk 0:00:53.6]} 46. Be3 {[%clk 0:00:11.9]} 46... h5 {[%clk 0:00:53.8]}
47. Rb6 {[%clk 0:00:09.9]} 47... h4 {[%clk 0:00:55.1]} 48. a4 {[%clk 0:00:09.9]}
48... h3 {[%clk 0:00:56.5]} 49. Kg3 {[%clk 0:00:09.9]} 49... Kf5 {[%clk
0:00:56.8]} 50. Kxh3 {[%clk 0:00:10.6]} 50... Rg7 {[%clk 0:00:58]} 51. Rb5
{[%clk 0:00:08.2]} 51... Ke6 {[%clk 0:00:58.8]} 52. Rb6+ {[%clk 0:00:08.7]}
52... Kf5 {[%clk 0:01:00.1]} 53. Rb5 {[%clk 0:00:09.9]} 53... Ke6 {[%clk
0:01:01.5]} 54. a5 {[%clk 0:00:08.4]} 54... Bxf3 {[%clk 0:01:01.3]} 55. a6
{[%clk 0:00:08.9]} 55... Bg2+ {[%clk 0:00:48.8]} 56. Kh4 {[%clk 0:00:09.3]}
56... Bf3 {[%clk 0:00:46.9]} 57. a7 {[%clk 0:00:09.3]} 57... Rg4+ {[%clk
0:00:44.4]} 58. Kh3 {[%clk 0:00:09.7]} 58... f5 {[%clk 0:00:41.4]} 59. d5+
{[%clk 0:00:10.2]} 59... Kf7 {[%clk 0:00:36.1]} 60. Rb7+ {[%clk 0:00:10.2]}
60... Kg6 {[%clk 0:00:36.5]} 61. Rb6+ {[%clk 0:00:10.6]} 61... Kf7 {[%clk
0:00:31.5]} 62. Rb7+ {[%clk 0:00:10.9]} 62... Kg6 {[%clk 0:00:29.3]} 63. Rb6+
{[%clk 0:00:11.1]} 63... Kf7 {[%clk 0:00:27.1]} 64. Rb7+ {[%clk 0:00:06.5]}
64... Kg6 {[%clk 0:00:24.4]} 65. Rb6+ {[%clk 0:00:07.4]} 65... Kf7 {[%clk
0:00:25.6]} 66. Rb7+ {[%clk 0:00:08.3]} 66... Kg6 {[%clk 0:00:26.9]} 67. Rb6+
{[%clk 0:00:09.3]} 67... Kf7 {[%clk 0:00:28.1]} 68. Rb7+ {[%clk 0:00:10.2]}
1/2-1/2